[Event "SixDays Budapest March IM C 2025"]
[Site "Budapest"]
[Date "2025.03.26"]
[Round "5.1"]
[White "Arias Gaviria, Mario Alexis"]
[Black "Nemeth, Zoltan"]
[Result "1-0"]
[Annotator "TA"]
[ECO "D02"]
[WhiteElo "2284"]
[BlackElo "2188"]
[PlyCount "123"]
[EventDate "2025.03.23"]
[EventType "tourn"]
[EventCountry "HUN"]
[SourceTitle "playchess.com"]
[Source "ChessBase"]
[SourceQuality "1"]
[TimeControl "5400+30"]

{[%evp 10,122,2,12,8,-20,-7,-33,-34,-35,-18,-44,-35,-18,19,25,23,-54,0,0,0,-8,-23,-20,0,0,0,0,0,0,0,0,0,-41,-41,-45,-56,-104,-102,-133,-100,-117,-93,-122,-113,-106,-107,-124,-110,-110,-57,-114,-77,-123,-88,-112,-77,-104,-77,-124,-129,-131,-91,-143,-116,-110,-88,-126,-130,-610,-600,-559,-345,-338,-192,-229,-153,-134,-135,-153,-29,-13,0,0,0,0,0,0,0,0,0,0,0,0,0,0,0,0,0,0,182,76,92,0,0,0,0,0,0,0,0,0,40,0,29999]} 1. Nf3 {[%emt 0:12:00]} d5 {[%emt 0:00:28]} 2. d4 {[%emt 0:00:03]} Nf6 {[%emt 0:02:13]} 3. g3 {[%emt 0:00:17]} c6 {[%emt 0:01:21]} 4. Bg2 {[%emt 0:00:07]} Bf5 {[%emt 0:02:01]} 5. O-O {[%emt 0:00:03]} e6 {[%emt 0:01:38]} 6. b3 {[%emt 0:00:04]} h6 {[%emt 0:00:28] D02: 1 d4 d5 2 Nf3 sidelines, including 2...Nf6 3 g3 and 2...Nf6 3 Bf4.} 7. a4 Nbd7 $146 {[%emt 0:00:32]} ({Predecessor:} 7... a5 8. Bd2 Bd6 9. c3 Nbd7 10. Na3 e5 11. dxe5 Nxe5 12. Nd4 Bg6 13. Qc1 O-O {0-1 Ozgur,S (2157)-Javakhadze,Z (2415) TUR-chT2 Konya 2015 (2.11)}) 8. Ba3 {[%emt 0:01:37]} Bxa3 {[%emt 0:00:30] Black is slightly better.} 9. Nxa3 {[%emt 0:00:04]} Be4 {[%emt 0:00:47]} 10. Nd2 {[%emt 0:07:45]} Bxg2 {[%emt 0:00:10]} 11. Kxg2 {[%emt 0:00:03]} e5 {[%emt 0:00:44]} 12. dxe5 {[%emt 0:02:01]} Nxe5 {[%emt 0:00:06]} 13. Nf3 {[%emt 0:03:06]} (13. Re1 $11) 13... Nxf3 {[%emt 0:00:25]} (13... Qe7 $15) 14. exf3 $11 {[%emt 0:00:03]} O-O {[%emt 0:00:06]} 15. Qd3 {[%emt 0:01:04]} Re8 {[%emt 0:00:25]} 16. c3 {[%emt 0:00:35]} Qe7 {[%emt 0:12:05]} 17. Rfe1 {[%emt 0:02:28]} Qxe1 {[%emt 0:05:27]} 18. Rxe1 {[%emt 0:00:07]} Rxe1 {[%emt 0:00:07]} 19. Nc2 {[%emt 0:00:03]} Ree8 {[%emt 0:05:57]} 20. Ne3 {[%emt 0:00:27]} Rad8 {[%emt 0:02:57]} 21. Nf5 {[%emt 0:00:21]} c5 {[%emt 0:02:39] Inhibits Qd4.} 22. g4 {[%emt 0:05:31]} Rd7 {[%emt 0:02:37]} 23. Qd2 {[%emt 0:02:05] [#]} (23. Kg3 $15) 23... d4 $1 $17 {[%emt 0:08:44][%mdl 512]} 24. c4 {[%emt 0:22:33]} (24. cxd4 cxd4) 24... Re6 {[%emt 0:06:01]} 25. Qd3 {[%emt 0:05:30]} b6 {[%emt 0:02:12]} 26. Kf1 {[%emt 0:02:09]} Ne8 {[%emt 0:09:11]} 27. Ng3 {[%emt 0:05:38]} Rde7 {[%emt 0:01:56]} 28. Qd2 {[%emt 0:01:07]} Nd6 {[%emt 0:00:44]} 29. h4 {[%emt 0:02:42]} Kh7 {[%emt 0:08:53]} (29... Nb7 $17 30. g5 Re1+ 31. Kg2 hxg5) 30. h5 {[%emt 0:04:44]} (30. Nh5 $1 $15) 30... g6 {[%emt 0:00:26]} 31. Kg2 {[%emt 0:03:10]} (31. a5) 31... Kg7 {[%emt 0:00:29]} 32. Kf1 {[%emt 0:00:45]} g5 {[%emt 0:06:12]} 33. Kg2 {[%emt 0:00:24]} Kg8 {[%emt 0:06:18]} 34. Kh2 {[%emt 0:02:53]} ({White should try} 34. a5) 34... Rf6 {[%emt 0:02:31]} 35. Kg2 {[%emt 0:00:15]} Re5 {[%emt 0:00:14]} 36. Ne2 {[%emt 0:03:40]} (36. a5 $142) 36... Rfe6 {[%emt 0:00:14]} 37. Ng3 {[%emt 0:00:23]} f5 {[%emt 0:00:49]} 38. gxf5 {[%emt 0:01:40]} Nxf5 {[%emt 0:00:06]} 39. Nf1 $2 {[%emt 0:03:05][%mdl 8192]} (39. Nxf5 $17 Rxf5 40. Qd3) 39... Nh4+ $19 {[%emt 0:01:41]} 40. Kg3 {[%emt 0:00:05]} Rf6 {[%emt 0:00:21]} 41. Nh2 {[%emt 0:00:09]} Kg7 {[%emt 0:01:01]} (41... a5 $142 42. Qd1 Rfe6) 42. a5 {[%emt 0:01:40]} Rf7 {[%emt 0:01:39]} 43. axb6 {[%emt 0:02:23]} axb6 {[%emt 0:00:04]} 44. b4 {[%emt 0:00:10]} Ref5 {[%emt 0:00:09]} (44... Ree7 $17 45. bxc5 bxc5) 45. bxc5 $11 {[%emt 0:00:43]} Nxf3 {[%emt 0:01:25]} 46. Qb2 {[%emt 0:00:21] The board is on fire.} bxc5 {[%emt 0:00:26]} 47. Ng4 {[%emt 0:02:58]} Ne5 {[%emt 0:01:46]} 48. Nxe5 {[%emt 0:00:12]} Rxe5 {[%emt 0:00:05][%mdl 4096] Endgame KQ-KRR} 49. Qb6 {[%emt 0:00:02]} Ref5 {[%emt 0:00:54][%cal Of7f6]} 50. Qg6+ {[%emt 0:00:05]} Kf8 {[%emt 0:00:05]} 51. Qd6+ {[%emt 0:00:55]} Ke8 {[%emt 0:00:12]} 52. Qe6+ {[%emt 0:01:23]} Kd8 {[%emt 0:00:11]} 53. Qxh6 {[%emt 0:01:33]} d3 {[%emt 0:03:01][%cal Od3d2] Threatens to win with ...d2!.} (53... Rxf2 54. Qb6+ (54. Qxg5+ Ke8 $16) 54... Ke8 55. Qb8+ (55. Qxc5 R7f3+ 56. Kg4 Rf4+ 57. Kg3 R4f3+ 58. Kg4 Rf4+ 59. Kg3 R4f3+ $11) 55... Ke7 56. Qe5+ Kf8 57. Qxc5+ (57. Qxg5 $2 R7f3+ 58. Kg4 Rg2+ 59. Kxf3 Rxg5 $19) 57... Kg8 58. Qxg5+ (58. Qxd4 $2 R7f3+ 59. Kg4 Rf4+ $19) 58... Kh7 59. Qg6+ Kh8 60. Qe4 $11) 54. Qb6+ {[%emt 0:00:11]} (54. Qd6+ Rd7 55. Qg6 d2 56. Qxf5 d1=Q $19 (56... d1=B $2 57. h6 $18)) 54... Rc7 $2 {[%emt 0:00:48]} (54... Ke7 $11 {and Black is okay.}) 55. h6 {[%emt 0:01:03]} (55. Qb8+ $18 {is the precise move to win.} Kd7 56. Qb1) 55... Rff7 $16 {[%emt 0:01:41] [#]} 56. Qd6+ {[%emt 0:00:26]} (56. Qb8+ $1 $16 Kd7 57. Qb1) 56... Rcd7 $11 {[%emt 0:03:04]} 57. Qb8+ {[%emt 0:00:10]} Ke7 {[%emt 0:00:03]} 58. Qe5+ {[%emt 0:00:15]} Kd8 {[%emt 0:00:01]} (58... Kf8 59. Qh8+ (59. Qxg5 $2 {perishes.} d2 $19) (59. Qxc5+ Kg8 $11) 59... Ke7 60. h7 $16) 59. Qxg5+ {[%emt 0:02:04]} Kc8 {[%emt 0:00:56]} 60. Qxc5+ {[%emt 0:00:12]} Rc7 {[%emt 0:01:12]} 61. Qd5 {[%emt 0:00:10]} Rfd7 $2 {[%emt 0:00:18][%mdl 8192]} (61... Rcd7 $11 62. Qa8+ Kc7) 62. Qa8# {[%emt 0:00:08] Quite a comeback for White.   Weighted Error Value: White=0.26 (precise) /Black=0.37  Loses game:     	White=1     	Black=2      Mistake:       	White=8     	Black=4      Inaccurate:     	White=9     	Black=6      OK:         	White=17    	Black=10     Best:        	White=4     	Black=5      Brilliant:      	---       	Black=1} 1-0

[Event "SixDays Budapest March IM C 2025"]
[Site "Budapest"]
[Date "2025.03.26"]
[Round "5.2"]
[White "Balla, Tamas-Kristof"]
[Black "Bashirov, Kemal"]
[Result "1/2-1/2"]
[Annotator "TA"]
[ECO "A06"]
[WhiteElo "2320"]
[BlackElo "2336"]
[PlyCount "83"]
[EventDate "2025.03.23"]
[EventType "tourn"]
[EventCountry "HUN"]
[SourceTitle "playchess.com"]
[Source "ChessBase"]
[SourceQuality "1"]
[TimeControl "5400+30"]

{[%evp 9,83,-5,-3,-8,0,0,22,-15,16,5,23,-27,-4,-10,-18,-10,-8,-66,-4,-48,4,3,5,10,14,6,30,15,19,10,35,11,27,-23,-8,0,-7,-15,-21,-23,-33,-80,-45,-44,-38,-39,-29,-58,-45,-63,0,0,3,0,0,-27,-24,-52,-16,-10,-13,0,0,0,0,0,0,-11,0,0,0,-6,0,0,0,-11]} 1. Nf3 {[%emt 0:03:38]} d5 {[%emt 0:00:19]} 2. b3 {[%emt 0:00:07]} Nf6 {[%emt 0:00:08]} 3. Bb2 {[%emt 0:00:05]} Bf5 {[%emt 0:00:04]} 4. d3 {[%emt 0:00:30]} c5 {[%emt 0:00:47]} 5. e3 {[%emt 0:01:47]} Nc6 {[%emt 0:02:43]} 6. Nbd2 {[%emt 0:00:12] A06: Réti Opening: 1 Nf3 d5.} h6 {[%emt 0:02:12]} 7. g3 {[%emt 0:00:16]} Qd7 {[%emt 0:12:04]} 8. h3 {[%emt 0:00:36]} O-O-O {[%emt 0:04:53]} 9. Bg2 {[%emt 0:02:34]} e6 $146 {[%emt 0:09:07]} (9... g5 10. g4 Bg6 11. Ne5 Nxe5 12. Bxe5 Bg7 13. e4 Qe6 14. Bh2 dxe4 15. O-O exd3 {1-0 Jansen,M-De Jong,P NED moira corr 1985}) 10. g4 {[%emt 0:03:12]} (10. O-O $142) 10... Bh7 {[%emt 0:00:45]} 11. Ne5 {[%emt 0:01:12]} Nxe5 {[%emt 0:01:27]} 12. Bxe5 {[%emt 0:00:20]} Bd6 {[%emt 0:00:03]} 13. f4 {[%emt 0:00:11]} (13. Bb2 $11) 13... Ne8 {[%emt 0:05:57]} (13... Bxe5 $15 14. fxe5 Ne8) 14. Qe2 {[%emt 0:02:39]} f6 {[%emt 0:08:40]} (14... Bxe5 $15 15. fxe5 Qe7) 15. Bb2 $11 {[%emt 0:01:37]} Nc7 {[%emt 0:04:27]} 16. O-O-O {[%emt 0:07:12]} Rhe8 {[%emt 0:02:11][%cal Od5d4]} 17. Qf3 {[%emt 0:06:33]} Qb5 {[%emt 0:03:39]} 18. e4 {[%emt 0:03:31]} Qa6 {[%emt 0:04:27]} 19. Kb1 {[%emt 0:02:05]} d4 {[%emt 0:02:37]} 20. Nc4 {[%emt 0:07:02]} e5 {[%emt 0:01:49]} 21. f5 {[%emt 0:09:03]} (21. h4 $142) 21... Bg8 {[%emt 0:01:24]} 22. a4 {[%emt 0:05:56]} Qc6 {[%emt 0:00:59]} 23. Qe2 {[%emt 0:06:56]} a6 {[%emt 0:03:37]} 24. a5 {[%emt 0:01:01]} Nb5 {[%emt 0:02:54]} 25. Qd2 {[%emt 0:01:47]} (25. Nxd6+ $15 {might be stronger.} Nxd6 (25... Rxd6 26. Qd2 $11) (25... Qxd6 26. Qd2 $11) 26. h4) 25... Bc7 {[%emt 0:00:21]} 26. Ka2 {[%emt 0:00:56]} Rd7 {[%emt 0:10:55]} 27. Ra1 {[%emt 0:00:58]} Bxc4 {[%emt 0:04:00]} 28. bxc4 {[%emt 0:02:40]} Na7 {[%emt 0:00:33][%cal Bb5a7,Ba7c6,Bc6b4][%mdl 32]} 29. Kb1 {[%emt 0:00:44]} b6 {[%emt 0:02:37]} ({Better is} 29... Qd6 $15) 30. axb6 {[%emt 0:01:11]} Qxb6 {[%emt 0:00:07]} 31. Ra3 {[%emt 0:04:44]} Nc6 {[%emt 0:00:27]} 32. Ka1 {[%emt 0:02:21]} Bd8 {[%emt 0:02:12]} 33. Rb3 {[%emt 0:02:43]} Nb4 {[%emt 0:00:15]} 34. Rb1 {[%emt 0:01:13] The position is equal.} Rb7 {[%emt 0:01:06][%cal Ob4c2] [#] ...Nxc2+! would now be deadly.} 35. Bc1 {[%emt 0:06:18]} Be7 {[%emt 0:00:48]} 36. Bf3 {[%emt 0:00:15]} Kd7 {[%emt 0:01:59]} 37. Bd1 {[%emt 0:00:08]} Reb8 {[%emt 0:00:30]} 38. h4 {[%emt 0:00:29]} Qa5+ {[%emt 0:01:42]} 39. Ra3 {[%emt 0:00:32]} Qc7 {[%emt 0:00:02]} 40. Rb2 {[%emt 0:02:59]} Rb6 {[%emt 0:01:10]} 41. Qg2 {[%emt 0:01:30]} Nc6 {[%emt 0:01:01]} 42. Qd2 {[%emt 0:02:25] Weighted Error Value: White=0.14 (very precise) /Black=0.13 (very precise)   Mistake:       	White=4     	Black=3      Inaccurate:     	White=5     	Black=3      OK:         	White=11    	Black=16     Best:        	White=2     	---} 1/2-1/2

[Event "SixDays Budapest March IM C 2025"]
[Site "Budapest"]
[Date "2025.03.26"]
[Round "5.3"]
[White "Szeberenyi, Adam"]
[Black "Mou, Iris"]
[Result "1-0"]
[Annotator "TA"]
[ECO "D37"]
[WhiteElo "2294"]
[BlackElo "2209"]
[PlyCount "119"]
[EventDate "2025.03.23"]
[EventType "tourn"]
[EventCountry "HUN"]
[SourceTitle "playchess.com"]
[Source "ChessBase"]
[SourceQuality "1"]
[TimeControl "5400+30"]

{[%evp 9,119,-23,-16,-14,0,0,0,-11,24,12,9,9,15,18,14,20,27,32,31,40,62,62,58,18,172,182,184,176,446,459,454,459,499,486,490,491,477,391,473,388,383,382,369,369,347,300,451,479,481,460,509,515,515,459,530,523,579,567,727,714,688,683,669,633,848,627,592,0,820,716,785,742,855,847,839,724,714,723,723,692,672,652,716,696,1054,1050,1107,1095,6057,6057,5821,5821,5712,5289,5057,4133,5273,5110,2208,1883,29973,29974,29967,7108,6101,5712,29977,29973,29977,29978,29972,29958]} 1. d4 {[%emt 0:00:01]} d5 {[%emt 0:00:19]} 2. c4 {[%emt 0:00:11]} e6 {[%emt 0:00:13]} 3. Nf3 {[%emt 0:00:04]} Nf6 {[%emt 0:00:07]} 4. Nc3 {[%emt 0:00:06]} dxc4 {[%emt 0:00:09]} 5. a4 {[%emt 0:13:27]} Bb4 {[%emt 0:06:39]} 6. e3 {[%emt 0:00:51] D24: Queen's Gambit Accepted: 3 Nf3 Nf6 4 Nc3.} b6 {[%emt 0:06:03]} 7. Bxc4 {[%emt 0:03:09]} Bb7 {[%emt 0:00:12]} 8. O-O {[%emt 0:00:31] The position is equal.} a6 {[%emt 0:01:28]} 9. Qe2 {[%emt 0:11:14]} (9. Qb3 $5 a5 10. Ne5 $14) 9... O-O {[%emt 0:00:53]} 10. Rd1 {[%emt 0:03:07]} Qe7 {[%emt 0:00:07]} 11. Bd3 {[%emt 0:06:30] 11.Bd3 is better than 11.Na2.} c5 {[%emt 0:00:11]} 12. e4 {[%emt 0:01:04]} cxd4 {[%emt 0:08:14]} 13. Nxd4 {[%emt 0:00:04]} Rd8 $146 {[%emt 0:01:45]} (13... Bc5 14. Nb3 Nfd7 15. Bf4 Nc6 16. e5 Nb4 17. Be4 Rfb8 18. Bxb7 Rxb7 19. Qe4 Rab8 {1-0 Costachi,M (2461)-Kobo,O (2542) Miercurea Ciuc GP RO Stage 3 2022 (9)}) 14. e5 {[%emt 0:09:58]} Rxd4 {[%emt 0:09:51]} 15. exf6 {[%emt 0:05:21]} Qxf6 {[%emt 0:01:48]} 16. Be3 {[%emt 0:10:11]} Rh4 {[%emt 0:10:36] Black is on the road to losing.} (16... Rd7 $1 $11 {and Black is okay.}) 17. g3 $1 $18 {[%emt 0:03:27][%mdl 1024] White has strong compensation.} Bf3 {[%emt 0:08:47]} 18. Qc2 {[%emt 0:17:00]} Rh5 $2 {[%emt 0:10:44]} (18... Bxd1 $2 19. Rxd1 Rh5 20. Be2 $18) (18... Rxh2 19. Kxh2 g5 20. Bxh7+ Kg7) 19. Ne4 {[%emt 0:05:42]} Qe7 {[%emt 0:05:42] [#]} 20. Be2 {[%emt 0:00:27]} Bxe2 {[%emt 0:07:05] [#]} 21. Qc8+ $1 {[%emt 0:00:38]} ({Less strong is} 21. Qxe2 Rd5 $11) 21... Qf8 {[%emt 0:00:18]} 22. Rd8 {[%emt 0:00:07]} Bf3 {[%emt 0:03:52][%cal Of3e4]} 23. Rxf8+ {[%emt 0:02:34]} Bxf8 {[%emt 0:00:07]} 24. Ng5 {[%emt 0:02:07]} Rxg5 {[%emt 0:08:47]} 25. Bxg5 {[%emt 0:00:07]} a5 {[%emt 0:00:27]} 26. Be3 {[%emt 0:03:07]} Na6 {[%emt 0:00:25]} 27. Qc3 {[%emt 0:00:32]} Bd5 {[%emt 0:03:02]} (27... Bb4 {was worth a try.} 28. Qd3 Bc6 29. Bxb6 Bf8 30. Bxa5 Nc5) 28. Bxb6 {[%emt 0:00:30]} Nb4 {[%emt 0:01:00]} 29. Bc5 {[%emt 0:00:37] Prevents Be7} Bxc5 {[%emt 0:03:07]} 30. Qxc5 {[%emt 0:00:04]} h6 {[%emt 0:00:31]} 31. Rd1 {[%emt 0:00:56]} Kh7 {[%emt 0:01:09]} 32. Qe7 {[%emt 0:02:05]} Kg8 {[%emt 0:00:47]} 33. Rc1 {[%emt 0:00:11]} Na6 {[%emt 0:01:28]} 34. Qd7 {[%emt 0:00:26] Rc8+ is the strong threat.} Nb4 {[%emt 0:00:53]} 35. Rc7 {[%emt 0:00:38]} Rf8 {[%emt 0:00:10]} 36. Rc5 {[%emt 0:00:25]} Kh7 {[%emt 0:00:56]} 37. Qe7 {[%emt 0:00:23]} Kg8 {[%emt 0:00:10]} 38. Qd7 {[%emt 0:00:45]} Kh7 $1 {[%emt 0:00:25]} 39. Kf1 {[%emt 0:00:20]} Kg8 {[%emt 0:00:44]} 40. Ke2 {[%emt 0:00:19]} Kh7 {[%emt 0:00:20]} 41. Rxa5 {[%emt 0:00:31]} Rb8 {[%emt 0:00:42] [#]} 42. Rxd5 $1 {[%emt 0:01:03]} Nxd5 {[%emt 0:00:15]} 43. Qxf7 {[%emt 0:00:06]} Rxb2+ {[%emt 0:00:05][%mdl 4096] Endgame KQ-KRN} 44. Kf3 {[%emt 0:00:06]} Rb6 {[%emt 0:00:40]} 45. Qa7 {[%emt 0:00:10]} Rb3+ {[%emt 0:00:24]} 46. Kg2 {[%emt 0:00:34]} Ra3 {[%emt 0:00:55]} 47. a5 {[%emt 0:00:08]} Ra2 {[%emt 0:00:45]} 48. a6 {[%emt 0:00:57]} Nb4 {[%emt 0:00:29]} 49. Qb7 {[%emt 0:00:07]} Rxa6 {[%emt 0:00:16]} 50. Qxb4 {[%emt 0:00:04] KQ-KR} Kg8 {[%emt 0:00:44]} 51. Qb5 {[%emt 0:00:12]} Ra8 {[%emt 0:00:35]} 52. Qc6 {[%emt 0:00:05][%csl LRa8,LRe6]} Rf8 {[%emt 0:00:08]} 53. Qxe6+ {[%emt 0:00:10]} Kh7 {[%emt 0:00:07]} 54. Qe4+ {[%emt 0:00:35]} Kg8 {[%emt 0:00:04]} 55. h4 {[%emt 0:00:59][%cal Bh2h4,Bh4h5][%mdl 32]} Rf6 {[%emt 0:00:06]} 56. Qe8+ {[%emt 0:00:17]} (56. Qe7 $142 Rf8 57. g4 Rf4 58. Qe6+ Kh7 59. g5 Rf8 60. Qe4+ Kg8 61. Qg6) 56... Rf8 {[%emt 0:00:17]} 57. Qe6+ {[%emt 0:00:06]} Kh7 {[%emt 0:00:15]} 58. h5 {[%emt 0:00:17] White mates.} Kh8 {[%emt 0:00:08]} 59. f4 {[%emt 0:00:16]} Kh7 {[%emt 0:00:26]} 60. Kf3 {[%emt 0:00:48] Weighted Error Value: White=0.08 (flawless) /Black=0.38  Mistake:       	---       	Black=3      Inaccurate:     	---       	Black=1      OK:         	White=16    	Black=9      Best:        	White=3     	Black=3      Strong:       	White=2     	---} 1-0

[Event "SixDays Budapest March IM C 2025"]
[Site "Budapest"]
[Date "2025.03.26"]
[Round "5.4"]
[White "Steiners, Emils"]
[Black "Georgiadis, Anastasios"]
[Result "1-0"]
[Annotator "RC"]
[ECO "E47"]
[WhiteElo "2165"]
[BlackElo "2229"]
[PlyCount "139"]
[EventDate "2025.03.23"]
[EventType "tourn"]
[EventCountry "HUN"]
[SourceTitle "playchess.com"]
[Source "ChessBase"]
[SourceQuality "1"]
[TimeControl "5400+30"]

1. d4 {[%emt 0:00:04]} Nf6 {[%emt 0:03:15]} 2. c4 {[%emt 0:00:07]} e6 {[%emt 0:00:23]} 3. Nc3 {[%emt 0:00:06]} Bb4 {[%emt 0:00:07]} 4. e3 {[%emt 0:00:05]} O-O {[%emt 0:00:08]} 5. Bd3 {[%emt 0:00:02]} Re8 {[%emt 0:00:09]} 6. Nge2 {[%emt 0:13:09]} d5 {[%emt 0:00:13]} 7. a3 {[%emt 0:02:32]} Bf8 {[%emt 0:00:15]} 8. O-O {[%emt 0:05:47]} b6 {[%emt 0:06:18]} 9. cxd5 {[%emt 0:00:56]} exd5 {[%emt 0:00:19]} 10. b4 {[%emt 0:05:16]} Bb7 {[%emt 0:01:03]} 11. Qc2 {[%emt 0:00:36]} Nbd7 {[%emt 0:02:25]} 12. Bb2 {[%emt 0:01:37]} a6 {[%emt 0:03:30]} 13. Qb3 {[%emt 0:06:07]} Bd6 {[%emt 0:08:37]} 14. Ng3 {[%emt 0:09:49]} Rb8 {[%emt 0:09:41]} 15. Qc2 {[%emt 0:10:24]} Bf8 {[%emt 0:06:25]} 16. Na4 {[%emt 0:01:21]} g6 {[%emt 0:02:42]} 17. Rfe1 {[%emt 0:01:54]} Ne4 {[%emt 0:08:10]} 18. Nh1 {[%emt 0:08:10]} Bg7 {[%emt 0:09:42]} 19. f3 {[%emt 0:01:10]} Nd6 {[%emt 0:00:45]} 20. e4 {[%emt 0:02:21]} dxe4 {[%emt 0:02:31]} 21. fxe4 {[%emt 0:02:59]} Nb5 {[%emt 0:01:12]} 22. e5 {[%emt 0:09:42]} Nf8 {[%emt 0:03:55]} 23. Rad1 {[%emt 0:01:32]} Bd5 {[%emt 0:06:17]} 24. Bxb5 {[%emt 0:03:11]} axb5 {[%emt 0:00:10]} 25. Nc3 {[%emt 0:00:07]} Qd7 {[%emt 0:04:35]} 26. Qe2 {[%emt 0:01:56]} c6 {[%emt 0:02:32]} 27. Nf2 {[%emt 0:02:43]} Ne6 {[%emt 0:00:35]} 28. Qe3 {[%emt 0:02:05]} Rbd8 {[%emt 0:01:39]} 29. Nce4 {[%emt 0:01:43]} Bxe4 {[%emt 0:02:05]} 30. Nxe4 {[%emt 0:00:11]} Nc7 {[%emt 0:00:49]} 31. Qf3 {[%emt 0:02:32]} Nd5 {[%emt 0:00:59]} 32. Bc1 {[%emt 0:00:36]} h6 {[%emt 0:03:17]} 33. h4 {[%emt 0:01:21]} Re6 {[%emt 0:02:56]} 34. h5 {[%emt 0:03:57]} gxh5 {[%emt 0:00:08]} 35. Rf1 {[%emt 0:00:51]} Rg6 {[%emt 0:00:52]} 36. Qxh5 {[%emt 0:00:38]} Qg4 {[%emt 0:01:23]} 37. Qxg4 {[%emt 0:00:18]} Rxg4 {[%emt 0:00:05]} 38. Nd6 {[%emt 0:00:39]} Rxd6 {[%emt 0:03:51]} 39. exd6 {[%emt 0:00:07]} Bxd4+ {[%emt 0:00:04]} 40. Kh2 {[%emt 0:01:18]} Be5+ {[%emt 0:00:05]} 41. g3 {[%emt 0:00:18]} Bxd6 {[%emt 0:00:52]} 42. Rf3 {[%emt 0:00:30]} h5 {[%emt 0:01:07]} 43. Kh3 {[%emt 0:00:17]} Kg7 {[%emt 0:00:49]} 44. Be3 {[%emt 0:00:25]} Bc7 {[%emt 0:01:26]} 45. Rdf1 {[%emt 0:00:29]} Kg6 {[%emt 0:00:56]} 46. Bf2 {[%emt 0:00:58]} f5 {[%emt 0:01:02]} 47. Rc1 {[%emt 0:00:30]} Rc4 {[%emt 0:00:23]} 48. Re1 {[%emt 0:00:20]} f4 {[%emt 0:01:50]} 49. Re6+ {[%emt 0:00:27]} Kf5 {[%emt 0:00:08]} 50. Re8 {[%emt 0:00:17]} Be5 {[%emt 0:00:31]} 51. gxf4 {[%emt 0:00:32]} Ke4 {[%emt 0:00:46]} 52. Re3+ {[%emt 0:00:53]} Nxe3 {[%emt 0:00:25]} 53. Rxe5+ {[%emt 0:00:08]} Kxf4 {[%emt 0:00:11]} 54. Rxe3 {[%emt 0:00:13]} Rc2 {[%emt 0:00:56]} 55. Bg1 {[%emt 0:00:07]} c5 {[%emt 0:00:32]} 56. Rb3 {[%emt 0:01:12]} c4 {[%emt 0:00:46]} 57. Rg3 {[%emt 0:00:02]} Rb2 {[%emt 0:00:46]} 58. Bxb6 {[%emt 0:01:17]} Rb3 {[%emt 0:00:01]} 59. Rxb3 {[%emt 0:00:28]} cxb3 {[%emt 0:00:03]} 60. Bd4 {[%emt 0:00:02]} Ke4 {[%emt 0:00:09]} 61. Bb2 {[%emt 0:00:18]} Kd3 {[%emt 0:00:41]} 62. a4 {[%emt 0:00:21]} bxa4 {[%emt 0:00:22]} 63. b5 {[%emt 0:00:06]} Kc2 {[%emt 0:00:02]} 64. Ba3 {[%emt 0:00:15]} b2 {[%emt 0:00:44]} 65. Bxb2 {[%emt 0:00:07]} Kxb2 {[%emt 0:00:03]} 66. b6 {[%emt 0:00:05]} a3 {[%emt 0:00:05]} 67. b7 {[%emt 0:00:02]} a2 {[%emt 0:00:13]} 68. b8=Q+ {[%emt 0:00:03]} Ka1 {[%emt 0:00:04]} 69. Qb3 {[%emt 0:00:19]} h4 {[%emt 0:00:12]} 70. Kg4 {[%emt 0:00:03]} 1-0